[Event "FIDE Womens Grand Prix-I 2022-23"]
[Site "Nur-Sultan"]
[Date "2022.09.19"]
[Round "2.5"]
[White "Vaishali, Rameshbabu"]
[Black "Kashlinskaya, Alina"]
[Result "0-1"]
[ECO "C54"]
[WhiteElo "2449"]
[BlackElo "2504"]
[Annotator "TA"]
[PlyCount "80"]
[EventDate "2022.09.15"]
[EventType "tourn"]
[EventCountry "KAZ"]
[SourceTitle "playchess.com"]
[Source "ChessBase"]
[SourceQuality "1"]
[TimeControl "40/5400+30:1800+30"]

{[%evp 13,80,16,27,4,16,12,9,11,15,16,26,8,36,-2,104,97,72,66,112,104,114,113,113,110,110,107,141,-8,0,0,0,-28,-27,-75,-10,-69,-68,-568,-235,-206,-222,-200,-89,-94,-54,-119,-120,-92,0,0,0,0,0,-291,-282,-958,-928,-2028,-1923,-1502,-1443,-29964,-29965,-29986,-29987,-29985,-29971,-29987,-29988]} 1. e4 {[%emt 0:00:36]} e5 {[%emt 0:00:07]} 2. Nf3 {[%emt 0:00:08]} Nc6 {[%emt 0:00:09]} 3. Bc4 {[%emt 0:00:09]} Nf6 {[%emt 0:00:20]} 4. d3 {[%emt 0:00:05]} Bc5 {[%emt 0:00:16]} 5. Bg5 {[%emt 0:00:20][%cal Bc1g5,Bg5h4,Bh4g3][%mdl 32]} h6 {[%emt 0:00:39]} 6. Bh4 {[%emt 0:00:06]} a6 {[%emt 0:06:51]} 7. c3 {[%emt 0:02:33]} d6 {[%emt 0:03:17]} 8. a4 {[%emt 0:02:59] C54: Giuoco Piano: 4 c3 Nf6, main lines with 5 d4 and 5 d3.} Ba7 {[%emt 0:01:09]} 9. Nbd2 {[%emt 0:00:54]} g5 {[%emt 0:08:05]} 10. Bg3 {[%emt 0:00:05] The position is equal.} O-O {[%emt 0:05:15]} 11. O-O {[%emt 0:13:50]} g4 {[%emt 0:04:35] [#]} 12. Bh4 $1 {[%emt 0:16:02] next Ne1 is good for White.} Kg7 {[%emt 0:08:13]} 13. Kh1 {[%emt 0:02:35] [#]} (13. Ne1 $5 {[%cal Rg1h1]}) 13... Ne7 $5 $146 {[%emt 0:23:37][%mdl 8] An interesting novelty.} (13... gxf3 $11 14. Qxf3 Rg8) ({Predecessor:} 13... gxf3 14. Qxf3 Nb8 15. g4 Nbd7 16. Rg1 Rh8 17. Nf1 Qe8 18. g5 Ng8 19. gxh6+ Kf8 20. Qg3 Ngf6 21. Qg7+ Ke7 22. Rg6 Rg8 23. Bxf6+ Nxf6 24. Qxf6+ Kd7 25. Bxf7 {1-0 (25) Demchenko,A (2589)-Howell,D (2671) Gjakova 2016}) 14. Bxf6+ $16 {[%emt 0:18:13]} Kxf6 {[%emt 0:00:03]} 15. Nh4 {[%emt 0:00:07] Black must now prevent f4.} Ng6 {[%emt 0:04:40]} (15... Kg7 $14) 16. Nf5 $1 {[%emt 0:08:15]} d5 {[%emt 0:02:13]} 17. Bxd5 {[%emt 0:04:41]} Bxf5 {[%emt 0:00:05]} 18. exf5 {[%emt 0:00:21]} Qxd5 {[%emt 0:00:03]} 19. fxg6 {[%emt 0:03:55]} Qxd3 {[%emt 0:00:16]} 20. f3 {[%emt 0:15:07]} (20. Qxg4 $6 Qxd2 21. f4 fxg6 $11) (20. gxf7 $16 {Threatens to win with f4.} Rxf7 21. Re1 (21. Qxg4 Qxd2 22. f4 Bf2 $16)) 20... Kxg6 $11 {[%emt 0:01:46]} 21. fxg4 {[%emt 0:00:27]} e4 {[%emt 0:03:39][%cal Be5e4,Be4e3,Be3e2][%mdl 32]} 22. Qe1 {[%emt 0:01:55]} Rae8 {[%emt 0:01:06] And now ...e3 would win.} 23. Rf5 {[%emt 0:04:15]} (23. Qh4 $2 Qxd2 24. Rf5 Re6 $19) (23. Nb3 $11 {should be considered.}) 23... Re6 {[%emt 0:06:23]} (23... e3 $17 24. Nf3 Kg7) 24. Nf1 {[%emt 0:04:10]} (24. Nb3 $1 $11) 24... e3 $1 $15 {[%emt 0:01:17]} 25. Rd1 $2 {[%emt 0:00:40][%mdl 8192] [#]} ({White has to play} 25. Rf3 $1 $15) 25... Qc2 {[%emt 0:05:38]} (25... Qxd1 $142 $3 {[%mdl 512]} 26. Qxd1 e2) 26. Ng3 $19 {[%emt 0:00:30]} e2 {[%emt 0:00:07]} 27. Rd7 {[%emt 0:00:13]} Qxa4 {[%emt 0:01:50] Dancing on a razor blade.} (27... Qxb2 $19 {and Black stays clearly on top. Hoping for ...Qc2.} 28. h3 Qxc3 $1 29. Qxc3 e1=Q+ 30. Qxe1 Rxe1+ 31. Nf1 h5) 28. Rd2 $17 {[%emt 0:00:46]} Rfe8 {[%emt 0:02:35][%cal Oa4a1,Bf8e8,Be8e4,Be4e7][%mdl 32] aiming for ...Qa1!} 29. h3 {[%emt 0:00:31]} (29. Rxe2 $15 Rxe2 30. Nxe2) 29... Qc4 {[%emt 0:04:30]} (29... Kg7 30. Nh5+ Kg8 31. Nf6+ Rxf6 32. Rxf6) 30. Nh5 {[%emt 0:00:25] [#]} Re3 $40 {[%emt 0:01:53][%mdl 128] Black attacks.} (30... Re4 $1 $17) 31. Rf4 {[%emt 0:00:35]} (31. Kh2 $5 {[%cal Rd2d7]} Bb8 32. Rf6+ (32. Rd7 c5+ 33. g3 Qe6 $11) 32... Kh7 33. Rd7 c6+ 34. g3 $11) 31... R8e4 {[%emt 0:01:40] Active counter play!} 32. Rf6+ {[%emt 0:00:12]} ({Reject} 32. Rf5 Bc5 33. Rd8 Re8 $17) 32... Kh7 {[%emt 0:00:01] Strongly threatening ...Rd3.} 33. Rd7 {[%emt 0:00:23][%mdl 8192] [#]} (33. Kh2 $1 $11 {and White has nothing to worry.} Bc5 34. Rd8) 33... Re7 $1 $19 {[%emt 0:00:15]} 34. Rd2 {[%emt 0:00:54]} (34. Rd8 R3e6 35. Rd2) 34... Rd3 {[%emt 0:01:02] ( -> ...Rxd2)} 35. Kh2 {[%emt 0:00:29]} Rxd2 {[%emt 0:02:11]} 36. Qxd2 {[%emt 0:00:05] [#]} Bg1+ $1 {[%emt 0:00:31][%cal Ba7g1,Bg1e3,Be3d2][%mdl 544]} 37. Kh1 {[%emt 0:00:16]} (37. Kxg1 e1=Q+) 37... Be3 {[%emt 0:00:03] Black mates.} 38. g5 {[%emt 0:01:10]} hxg5 {[%emt 0:00:48]} ({And not} 38... Bxd2 39. Rxh6+ Kg8 40. Nf6+ Kg7 41. Nh5+ Kg8 42. Nf6+ Kg7 43. Nh5+ Kg8 $11) 39. Qe1 {[%emt 0:00:25] [#]} Bd2 $1 {[%emt 0:00:22][%mdl 512]} 40. Qb1+ {[%emt 0:00:09]} (40. Qxd2 e1=Q+) 40... Kg8 {[%emt 0:01:29] Weighted Error Value: White=0.77/Black=0.38} 0-1

[Event "FIDE Womens Grand Prix-I 2022-23"]
[Site "Nur-Sultan"]
[Date "2022.09.19"]
[Round "2.6"]
[White "Goryachkina, Aleksandra"]
[Black "Lagno, Kateryna"]
[Result "1/2-1/2"]
[ECO "B22"]
[WhiteElo "2579"]
[BlackElo "2547"]
[Annotator "TA"]
[PlyCount "60"]
[EventDate "2022.09.15"]
[EventType "tourn"]
[EventCountry "KAZ"]
[SourceTitle "playchess.com"]
[Source "ChessBase"]
[SourceQuality "1"]
[TimeControl "40/5400+30:1800+30"]

{[%evp 24,60,0,-9,0,0,0,0,0,0,34,28,28,41,33,31,39,40,39,31,34,24,58,0,0,0,0,0,0,-8,0,0,0,0,0,0,0,0,0]} 1. e4 {[%emt 0:00:10]} c5 {[%emt 0:00:26]} 2. Nf3 {[%emt 0:00:11]} e6 {[%emt 0:00:16]} 3. c3 {[%emt 0:01:28]} Nf6 {[%emt 0:00:33]} 4. e5 {[%emt 0:00:22]} Nd5 {[%emt 0:00:05]} 5. d4 {[%emt 0:00:55]} cxd4 {[%emt 0:00:38]} 6. cxd4 {[%emt 0:00:51]} d6 {[%emt 0:00:52]} 7. Bc4 {[%emt 0:00:29]} Be7 {[%emt 0:00:20]} 8. O-O {[%emt 0:00:17]} O-O {[%emt 0:00:05]} 9. Qe2 {[%emt 0:03:54]} Nc6 {[%emt 0:00:47]} 10. Nc3 {[%emt 0:04:12]} dxe5 {[%emt 0:06:01]} 11. dxe5 {[%emt 0:01:00]} Nxc3 {[%emt 0:01:34]} 12. bxc3 {[%emt 0:00:06]} Qc7 {[%emt 0:01:55]} 13. Bd3 {[%emt 0:01:38]} b6 {[%emt 0:04:40] B22: Sicilian: 2 c3.} 14. Re1 $1 {[%emt 0:04:13] 14.Re1 is better than 14.Qe4.} Bb7 {[%emt 0:03:09]} 15. Ng5 {[%emt 0:11:48]} Bxg5 {[%emt 0:39:39]} 16. Bxg5 {[%emt 0:00:06] [#] Threatens to win with Qe4.} Nxe5 {[%emt 0:08:58]} 17. Qxe5 {[%emt 0:02:20]} Qxe5 {[%emt 0:00:05][%mdl 64] Remove Defender} 18. Rxe5 {[%emt 0:00:05] aiming for Be3.} f6 {[%emt 0:00:02] [#]} 19. Rxe6 {[%emt 0:01:17]} fxg5 {[%emt 0:00:07]} 20. Bc4 {[%emt 0:01:46]} Kh8 {[%emt 0:07:44]} 21. Re7 {[%emt 0:01:38]} Bc6 {[%emt 0:04:35]} 22. h3 {[%emt 0:10:11] [#]} Rf4 $146 {[%emt 0:02:23]} ({Predecessor:} 22... Rfe8 23. Rae1 a5 24. R1e6 Rxe7 25. Rxe7 Rc8 26. Ba6 Rd8 27. Rc7 Be4 28. f3 Bb1 {1-0 (73) Macieja,B (2601)-Otero Acosta,D (2459) Monterrey 2015}) 23. Be6 {[%emt 0:14:19]} (23. Bb3 $14) 23... Re4 $11 {[%emt 0:06:54] The position is equal.} 24. Rd1 {[%emt 0:01:22] Against Rd8} Re8 {[%emt 0:01:43]} 25. Rxe8+ {[%emt 0:07:31]} Bxe8 {[%emt 0:00:02] KRB-KRB} 26. Bd7 {[%emt 0:07:15]} g6 {[%emt 0:01:01]} 27. f3 {[%emt 0:00:52]} Re7 {[%emt 0:00:13]} 28. Bxe8 {[%emt 0:00:19]} Rxe8 {[%emt 0:00:03]} 29. Rd7 {[%emt 0:00:14]} Rc8 {[%emt 0:00:24]} 30. Rxa7 {[%emt 0:00:10]} Rxc3 {[%emt 0:00:04] Weighted Error Value: White=0.05 (flawless) /Black=0.05 (flawless)} 1/2-1/2